bitfinex/quotes_ETHUSD_20250106
["timestamp","ask_amount","ask_price","bid_price","bid_amount"]
[1736140976126,0.7736,3685.4,3684.7,0.55955526]
[1736140976514,0.7736,3685.4,3684.8,0.02775565]
[1736140977836,0.7736,3685.4,3684.8,0.05488965]
[1736140978140,0.8,3685.7,3685.1,2.44224]
[1736140978343,0.8,3685.7,3685.2,0.299224]
[1736140978637,0.8,3685.7,3685.2,0.32674498]
[1736140979317,0.7844,3686.2,3685.2,2.76894498]
[1736140979634,0.7844,3686.2,3685.3,2.44213]
[1736140979811,0.7844,3686.2,3685.3,2.7190175]
[1736140980016,0.7844,3686.2,3685.4,0.02742852]
[1736140980945,0.7844,3686.2,3685.3,2.44211]
[1736140981118,0.7844,3686.2,3685.5,0.02727379]
[1736140981315,0.7844,3686.2,3685.6,0.30193338]
[1736140981628,0.7844,3686.2,3685.6,0.02720949]
[1736140982015,0.7844,3686.2,3685.4,2.44204]
[1736140982227,0.7844,3686.2,3685.5,0.60434411]
[1736140982435,0.7844,3686.2,3685.5,0.57721502]
[1736140983025,0.7844,3686.2,3685.5,2.46918502]
[1736140983339,0.01839679,3686.8,3685.6,2.6888385]
[1736140983647,0.8305,3686.7,3685.7,0.02713162]
[1736140984000,3.2717,3686.7,3685.7,0.02713162]
[1736140984262,0.8305,3686.7,3685.7,0.02713162]
[1736140984462,0.8305,3686.7,3685.7,2.44186]
[1736140984672,0.8305,3686.7,3685.8,2.685956]
[1736140984994,0.8305,3686.7,3685.8,2.71304593]
[1736140987464,0.8305,3686.7,3685.9,2.4417]
[1736140987918,0.8305,3686.7,3686.0,0.03113322]
[1736140988940,0.8305,3686.7,3685.8,0.244186]
[1736140989098,0.8305,3686.7,3686.1,0.03084201]
[1736140989305,0.8305,3686.7,3685.9,0.2686006]
[1736140989522,0.8305,3686.7,3686.2,0.0306563]
[1736140989829,0.8305,3686.7,3685.9,0.2686006]
[1736140990042,0.8305,3686.7,3686.3,0.03060767]
[1736140990208,0.8305,3686.7,3685.9,0.2686006]
[1736140990408,0.8305,3686.7,3686.0,0.29546366]
[1736140990598,0.8305,3686.7,3686.0,0.32900151]
[1736140991470,2.44127,3686.6,3686.0,0.03353785]
[1736140991606,0.8246,3686.5,3686.0,0.03353785]
[1736140991801,0.8246,3686.3,3685.2,11.87]
[1736140992007,0.8246,3686.3,3685.3,0.03108356]
[1736140993667,0.8246,3686.3,3685.3,0.60821339]
[1736140993805,0.8246,3686.3,3685.6,2.44193]
[1736140994158,0.8246,3686.3,3685.7,0.58088895]
[1736140994364,0.8246,3686.6,3685.8,2.44179]
[1736140994659,0.8246,3686.6,3685.9,0.03079167]
[1736140995140,0.8246,3686.6,3685.5,2.44196]
[1736140995309,0.8246,3686.6,3686.0,0.03074303]
[1736140995509,0.8246,3686.6,3685.5,2.44196]
[1736140995761,0.8246,3686.6,3686.1,0.03069439]
[1736140995968,0.8246,3686.6,3685.5,2.44196]
[1736140996142,0.8246,3686.6,3685.4,3.0]
[1736140996143,0.8246,3686.6,3686.2,0.03064575]
[1736140996445,0.8246,3686.6,3686.3,0.03059712]
[1736140996642,0.8246,3686.6,3685.6,2.44191]
[1736140996844,0.8246,3686.6,3685.7,0.03088895]
[1736140997512,2.44133,3686.6,3685.4,3.0]
[1736140997771,0.8247,3686.4,3685.8,0.03084031]
[1736140997916,0.8247,3686.4,3685.3,11.31208]
[1736140998258,0.8247,3686.4,3685.9,0.03079167]
[1736140998556,0.8247,3686.4,3685.3,11.31208]
[1736140998557,0.326605,3686.3,3685.4,0.0310349]
[1736140998737,0.326605,3686.3,3685.3,8.87]
[1736140998738,0.7829,3686.2,3685.3,8.87]
[1736140998943,0.7829,3686.2,3685.5,0.03098625]
[1736140999142,0.7829,3686.2,3685.4,0.0310349]
[1736140999320,0.7829,3686.2,3685.6,0.0309376]
[1736140999502,0.7829,3686.2,3685.5,0.03098625]
[1736140999841,0.7829,3686.2,3685.6,0.0309376]
[1736141000106,0.7829,3686.2,3685.3,8.87]
[1736141000238,0.7829,3686.2,3685.7,0.03088895]
[1736141000429,0.7829,3686.2,3685.5,2.44197]
[1736141000752,0.7829,3686.2,3685.6,0.03099559]
[1736141002074,0.7829,3686.2,3685.2,2.60296261]
[1736141002274,0.7829,3686.2,3685.7,0.03094694]
[1736141002433,1.105324,3686.2,3685.2,5.04514261]
[1736141002618,0.7829,3686.2,3685.3,0.03110464]
[1736141002818,0.7829,3686.2,3685.1,0.55]
[1736141003066,0.7829,3686.2,3685.2,0.0311533]
[1736141003368,0.7829,3686.2,3685.2,2.63411591]
[1736141003567,0.7829,3686.2,3685.2,2.60296261]
[1736141003889,0.7829,3686.2,3685.3,0.64649053]
[1736141004153,0.7829,3686.2,3685.3,3.08860053]
[1736141005050,0.7829,3686.2,3685.4,2.44206]
[1736141005212,0.77963326,3686.2,3685.5,0.03109696]
[1736141006035,0.77963326,3686.2,3685.5,2.47308696]
[1736141006238,0.77963326,3686.2,3685.6,0.30883832]
[1736141006433,0.77963326,3686.2,3685.7,0.03099967]
[1736141011076,0.77963326,3686.2,3685.8,0.03084556]
[1736141011573,0.77963326,3686.2,3685.4,2.44205]
[1736141011728,0.77963326,3686.2,3685.9,0.03079692]
[1736141011927,0.77963326,3686.2,3685.4,2.44205]
[1736141012129,0.77963326,3686.2,3686.0,0.03074828]
[1736141012379,0.77963326,3686.2,3685.5,0.30573463]
[1736141012521,0.77963326,3686.2,3686.1,0.030726]
[1736141012721,0.77963326,3686.2,3685.6,2.44193]
[1736141012955,0.7972,3686.7,3686.1,0.030726]
[1736141013162,1.17526368,3686.7,3685.6,2.44193]
[1736141013337,0.7972,3686.7,3686.2,0.03067737]
[1736141013658,0.7972,3686.7,3686.3,0.03062873]
[1736141013883,0.7972,3686.7,3685.6,2.44193]
[1736141014362,0.7972,3686.7,3685.7,0.03092056]
[1736141014883,2.44121,3686.7,3685.7,0.03092056]
[1736141015027,0.8075,3686.6,3685.7,0.03092056]
[1736141015848,0.8075,3686.4,3685.4,2.51683298]
[1736141016160,0.8075,3686.4,3685.5,0.03097041]
[1736141016961,3.24891,3686.4,3685.5,0.03097041]
[1736141017161,0.8107,3686.3,3685.5,0.03097041]
[1736141017852,0.8107,3686.3,3685.3,2.44212]
[1736141018053,0.8107,3686.3,3685.4,0.52691437]
[1736141018358,0.8107,3686.3,3685.4,0.03101907]
[1736141018759,0.8249,3686.2,3685.4,0.03101907]
[1736141019176,0.8249,3686.2,3685.2,1.12386608]
[1736141019387,0.8249,3686.2,3685.5,0.03097041]
[1736141019535,0.8249,3686.2,3685.2,1.12386608]
[1736141019735,0.8249,3686.2,3685.6,0.03092176]
[1736141019961,0.8249,3686.2,3685.2,1.12386608]
[1736141020158,2.44168,3686.0,3685.7,0.03087311]
[1736141020371,0.7991,3685.6,3685.2,2.05402557]
[1736141021370,0.7991,3685.6,3684.8,1.12386608]
[1736141022484,0.7991,3685.6,3684.8,0.93085218]
[1736141023143,1.14056173,3685.9,3684.8,0.93085218]
[1736141023347,1.14056173,3685.9,3685.0,2.60296261]
[1736141023673,0.764,3685.8,3684.8,2.44245]
[1736141023975,0.764,3685.8,3685.0,2.44232]
[1736141024275,0.764,3685.8,3685.0,0.55]
[1736141024641,0.764,3685.8,3685.1,1.12386608]
[1736141025594,0.764,3685.8,3685.3,2.44212]
[1736141025795,0.764,3685.8,3685.3,3.09871861]
[1736141025957,0.764,3685.8,3685.4,0.0312089]
[1736141026280,0.764,3685.8,3685.3,2.44212]
[1736141026452,0.764,3685.8,3685.4,0.02880821]
[1736141026651,0.764,3685.8,3685.3,2.44212]
[1736141026855,0.764,3685.8,3685.4,0.02880821]
[1736141027041,0.764,3685.8,3685.3,2.44212]
[1736141027243,0.764,3685.8,3685.4,0.0312089]
[1736141027580,0.764,3685.8,3685.1,4.95909298]
[1736141027888,0.764,3685.8,3685.1,5.11979559]
[1736141028042,0.764,3685.8,3685.2,0.02889804]
[1736141029450,0.764,3685.8,3685.3,2.44212]
[1736141029655,0.764,3685.8,3685.4,0.0312089]
[1736141029865,0.764,3685.8,3685.3,2.44212]
[1736141030083,0.764,3685.8,3685.4,0.53571716]
[1736141031708,0.764,3685.8,3685.4,0.0312089]
[1736141032092,0.764,3685.8,3685.3,2.44212]
[1736141032294,0.764,3685.8,3685.5,0.03116025]
[1736141032459,0.764,3685.8,3685.3,2.44212]
[1736141032659,0.764,3685.8,3685.4,0.0312089]
[1736141032881,0.764,3685.8,3685.3,2.44212]
[1736141033076,0.764,3685.8,3685.4,0.7566354]
[1736141033379,0.764,3685.8,3685.4,0.7878443]
[1736141036061,0.764,3685.8,3685.5,35.0]
[1736141036262,0.764,3685.8,3685.6,0.02876709]
[1736141038907,2.4418,3685.8,3685.6,0.02876709]
[1736141039124,2.68604,3685.7,3685.1,1.12541059]
[1736141039266,3.24014,3685.6,3685.1,1.12541059]
[1736141039603,0.7982,3685.6,3685.1,1.12541059]
[1736141040696,0.7982,3685.6,3685.2,0.02717742]
[1736141041010,0.7982,3685.6,3684.9,1.16742838]
[1736141041305,0.7982,3685.6,3685.3,1.16742838]
[1736141041528,1.13796379,3685.8,3685.3,1.16742838]
[1736141041820,1.93616379,3685.9,3685.5,1.16742838]
[1736141042136,1.13796379,3685.9,3685.6,0.02714171]
[1736141042339,1.13796379,3685.9,3685.6,35.02714171]
[1736141043183,2.50514569,3686.1,3685.6,35.02714171]
[1736141043184,0.7982,3686.1,3685.6,35.02714171]
[1736141046114,0.7982,3686.4,3685.7,2.46533225]
[1736141046315,1.13796379,3686.5,3685.9,2.44172]
[1736141046616,1.13796379,3686.6,3685.9,2.44172]
[1736141046807,1.13796379,3686.6,3686.0,35.0311385]
[1736141047381,1.13796379,3686.6,3686.2,2.44153]
[1736141047713,1.13796379,3686.6,3686.3,0.03099259]
[1736141048022,0.01839679,3686.8,3686.2,2.44153]
[1736141048317,0.01839679,3686.8,3686.4,0.03074887]
[1736141048509,0.7982,3686.7,3686.3,0.0307975]
[1736141048821,0.7982,3686.7,3686.5,0.0305948]
[1736141049036,0.7982,3686.7,3686.4,0.0334292]
[1736141049250,0.7982,3686.7,3686.6,0.03054618]
[1736141049416,0.7982,3686.7,3686.5,0.0305948]
[1736141049617,0.7982,3686.7,3686.6,0.03054618]
[1736141050016,0.7982,3686.7,3686.1,1.39393948]
[1736141050222,0.7982,3686.7,3686.6,0.03054618]
[1736141050444,0.7982,3686.7,3686.1,1.39393948]
[1736141050640,0.7982,3686.7,3686.6,0.0332656]
[1736141050818,0.7982,3686.7,3686.0,2.44165]
[1736141051019,0.7982,3686.7,3686.6,0.0332656]
[1736141051234,0.7982,3686.7,3686.0,2.44165]
[1736141051847,0.7982,3686.7,3686.1,2.47509085]
[1736141052458,0.01839679,3686.8,3686.2,2.44153]
[1736141052783,0.01839679,3686.8,3686.3,2.47821721]
[1736141052902,0.01839679,3686.8,3686.4,0.24782172]
[1736141053102,0.01839679,3686.8,3686.5,0.0333704]
[1736141054946,0.01839679,3686.8,3686.6,0.03331735]
[1736141055244,0.8317,3686.7,3686.6,0.03331735]
[1736141055416,0.8317,3686.7,3686.2,2.44152]
[1736141055621,0.8317,3686.7,3686.6,0.03324259]
[1736141055824,0.8317,3686.7,3686.2,2.44152]
[1736141056024,0.8317,3686.7,3686.6,0.03324259]
[1736141056223,0.8317,3686.7,3686.2,2.44152]
[1736141056424,0.8317,3686.7,3686.6,0.03324259]
[1736141056627,0.8317,3686.7,3686.2,2.44152]
[1736141056831,0.8317,3686.7,3686.6,0.03324259]
[1736141057029,0.8317,3686.7,3686.3,0.38344606]
[1736141057244,0.01839679,3686.8,3686.6,0.03324259]
[1736141057458,0.01839679,3686.8,3686.3,0.38344606]
[1736141057654,0.01839679,3686.8,3686.7,0.03318955]
[1736141057859,0.01839679,3686.8,3686.3,0.38344606]
[1736141058152,0.01839679,3686.8,3686.4,0.28249661]
[1736141058343,0.01839679,3686.8,3686.4,0.32222065]
[1736141059052,0.01839679,3686.8,3686.5,35.0]
[1736141059445,0.01839679,3686.8,3686.6,0.03959437]
[1736141060037,0.01839679,3686.8,3686.4,35.0]
[1736141060238,0.01839679,3686.8,3686.7,0.03952954]
[1736141060557,0.01839679,3686.8,3686.4,35.0]
[1736141060940,0.01839679,3686.8,3686.5,0.0396592]
[1736141061634,0.01839679,3686.8,3686.1,2.4416]
[1736141061961,0.01839679,3686.8,3686.2,35.0]
[1736141062164,0.01839679,3686.8,3686.2,35.03985372]
[1736141064660,0.01839679,3686.8,3686.2,37.48136372]
[1736141065064,0.01839679,3686.8,3686.2,35.03985372]
[1736141065361,0.01839679,3686.8,3686.4,2.4414]
[1736141065741,0.01839679,3686.8,3686.5,0.0396592]
[1736141066136,0.01839679,3686.8,3686.2,37.44153]
[1736141066359,0.01839679,3686.8,3686.6,0.03959437]
[1736141066530,0.01839679,3686.8,3686.2,37.44153]
[1736141066731,0.01839679,3686.8,3686.3,0.03978888]
[1736141066943,0.01839679,3686.8,3686.2,35.0]
[1736141067140,0.01839679,3686.8,3686.4,0.03972404]
[1736141067467,0.01839679,3686.8,3686.2,35.0]
[1736141067663,0.01839679,3686.8,3686.5,0.0396592]
[1736141067829,0.01839679,3686.8,3686.2,35.0]
[1736141068031,0.01839679,3686.8,3686.6,0.03959437]
[1736141068332,0.01839679,3686.8,3686.7,0.03952954]
[1736141068533,0.01839679,3686.8,3686.2,35.0]
[1736141068772,0.01839679,3686.8,3686.7,0.03952954]
[1736141069065,0.01839679,3686.8,3686.2,35.0]
[1736141069241,0.01839679,3686.8,3686.7,0.03952954]
[1736141069563,0.01839679,3686.8,3686.2,35.0]
[1736141069763,0.77419679,3686.8,3686.2,35.0]
[1736141070072,3.46180517,3686.8,3686.3,0.03978888]
[1736141070474,1.02066517,3686.8,3686.2,35.0]
[1736141070655,1.02066517,3686.8,3686.4,0.03972404]
[1736141071167,1.02066517,3686.8,3686.5,0.0396592]
[1736141071593,1.02066517,3686.8,3686.2,35.0]
[1736141071739,0.77419679,3686.8,3686.6,0.03959437]
[1736141071939,0.77419679,3686.8,3686.2,35.0]
[1736141072140,0.77419679,3686.8,3686.7,0.03952954]
[1736141072477,0.77419679,3686.8,3686.2,35.0]
[1736141072675,0.77419679,3686.8,3686.7,0.03952954]
[1736141072838,0.77419679,3686.8,3686.2,1.16658705]
[1736141073044,0.77419679,3686.8,3686.7,0.03952954]
[1736141073378,0.77419679,3686.8,3686.7,35.03964199]
[1736141074974,0.77419679,3686.8,3686.7,0.03964199]
[1736141075191,0.77419679,3686.8,3686.0,1.16658705]
[1736141075344,0.77419679,3686.8,3686.7,0.03964199]
[1736141075547,0.77419679,3686.8,3686.1,37.4416]
[1736141075968,0.77419679,3686.8,3686.2,0.03996616]
[1736141076757,0.77419679,3686.8,3686.3,35.0]
[1736141076953,0.77419679,3686.8,3686.3,35.03990132]
[1736141078883,0.77419679,3686.8,3686.3,37.48135132]
[1736141079085,0.01839679,3686.8,3686.3,37.48135132]
[1736141081463,0.01839679,3686.8,3686.3,35.03990132]
[1736141081873,0.01839679,3686.8,3686.6,3.60784705]
[1736141082185,0.01839679,3686.8,3686.7,0.03964199]
[1736141082358,0.01839679,3686.8,3686.7,35.0]
[1736141082560,0.01839679,3686.8,3686.7,37.48084199]
[1736141083246,0.01839679,3686.8,3686.7,37.4412]
[1736141084946,0.01839679,3686.8,3686.7,37.9912]
[1736141087359,0.01839679,3686.8,3686.7,38.91930214]
[1736141087689,0.01839679,3686.8,3686.7,41.91930214]
[1736141088682,0.4712245,3686.9,3686.8,14.86114]
[1736141088886,0.4712245,3686.9,3686.8,16.02772705]
[1736141089081,0.4712245,3686.9,3686.8,17.1943141]
[1736141089295,0.05128828,3687.5,3687.4,2.44074]
[1736141090002,0.05128828,3687.5,3687.4,7.15732705]
[1736141090962,0.05128828,3687.5,3687.4,17.44230675]
[1736141091161,0.1805325,3688.1,3687.5,3.0]
[1736141091397,0.0805325,3688.1,3688.0,16.89190675]
[1736141091588,0.0805325,3688.1,3688.0,17.44190675]
[1736141091793,0.0805325,3688.1,3688.0,52.44190675]
[1736141092190,2.5e-06,3688.1,3688.0,52.44190675]
[1736141092394,0.21945985,3689.6,3688.3,8.87]
[1736141092591,0.21945985,3689.6,3689.2,5.02108675]
[1736141092908,0.21945985,3689.6,3689.2,2.58156675]
[1736141093068,0.21945985,3689.6,3689.3,35.55]
[1736141094114,0.76421,3689.4,3687.7,8.87]
[1736141094314,2.43956,3689.2,3688.5,1.11651653]
[1736141094523,0.320377,3689.1,3688.5,1.11651653]
[1736141095383,0.320377,3689.1,3688.1,2.58156675]
[1736141095589,0.320377,3689.1,3688.2,3.55]
[1736141096074,0.320377,3689.1,3688.2,38.0]
[1736141096277,0.7944,3689.0,3687.8,11.45156675]
[1736141096475,2.43983,3688.8,3687.8,11.45156675]
[1736141096670,2.43983,3688.8,3688.0,3.0]
[1736141097287,0.7944,3689.0,3687.9,3.0]
[1736141097851,0.8122,3688.9,3688.0,35.0]
[1736141098114,1.137389,3688.8,3688.0,35.0]
[1736141098288,0.8122,3688.8,3688.0,35.0]
[1736141101423,2.43995,3688.6,3687.5,3.55]
[1736141101787,2.44021,3688.2,3687.4,8.87]
[1736141101989,3.19639,3688.1,3687.5,35.0]
[1736141102624,2.4405,3687.8,3686.7,3.69808328]
[1736141102931,0.7561,3688.0,3686.6,8.87]
[1736141103115,3.19651,3687.9,3686.6,8.87]
[1736141103315,0.7561,3687.7,3686.2,1.66060205]
[1736141103629,0.7561,3687.0,3686.2,1.11651653]
[1736141103828,0.7561,3687.0,3686.3,0.02712304]
[1736141104416,0.7561,3687.0,3686.2,2.60868978]
[1736141104620,0.7561,3687.0,3686.2,2.58156675]
[1736141104793,0.7561,3687.0,3686.0,8.87]
[1736141104794,0.7561,3687.0,3686.1,3.0]
[1736141105796,2.44073,3687.5,3685.6,2.58156675]
[1736141105996,0.7734,3686.5,3685.3,2.58156675]
[1736141106230,3.21477,3686.5,3685.3,5.02368675]
[1736141106533,3.21477,3686.5,3685.4,3.04026714]
[1736141106735,3.21477,3686.5,3685.4,0.04026714]
[1736141107197,0.7734,3686.5,3685.5,0.55]
[1736141107398,0.7734,3686.5,3685.8,0.55]
[1736141107610,0.7734,3686.5,3686.0,0.55]
[1736141107816,0.7734,3687.4,3686.3,0.55]
[1736141108200,0.7734,3687.4,3686.4,0.03961859]
[1736141108533,3.21415,3687.4,3686.4,0.03961859]
[1736141110398,2.44096,3687.1,3686.4,0.03961859]
[1736141110620,2.44096,3687.1,3686.0,0.01598605]
[1736141110841,2.44096,3687.1,3686.5,0.03955376]
[1736141110999,2.44101,3687.0,3686.0,0.55]
[1736141111199,2.44101,3687.0,3686.6,0.03948893]
[1736141111539,0.7833,3687.2,3686.0,0.55]
[1736141111747,3.80473568,3687.2,3686.0,0.55]
[1736141111949,2.44096,3687.1,3686.0,0.55]
[1736141112249,2.44096,3687.1,3686.1,0.03981312]
[1736141113022,1.36385568,3687.2,3686.2,0.55]
[1736141113247,0.7833,3687.2,3686.2,0.6168706]
[1736141113747,0.7833,3687.2,3686.2,0.03974827]
[1736141113947,2.44101,3687.0,3686.2,0.03974827]
[1736141114250,2.44109,3686.9,3686.3,0.03968343]
[1736141114557,2.44109,3686.9,3686.0,0.55]
[1736141115248,2.44109,3686.9,3685.9,11.87]
[1736141115249,0.8095,3686.7,3686.1,0.03981312]
[1736141115415,0.8095,3686.7,3685.7,3.0]
[1736141115615,3.2507,3686.7,3686.2,0.03974827]
[1736141115853,3.2507,3686.7,3685.7,3.0]
[1736141116056,3.2507,3686.7,3686.3,0.03968343]
[1736141116359,3.2507,3686.7,3685.9,0.55]
[1736141116525,3.2507,3686.7,3686.4,0.03961859]
[1736141116851,3.2507,3686.7,3685.9,0.55]
[1736141116852,0.8095,3686.7,3686.5,0.03955376]
[1736141117052,2.44129,3686.6,3685.4,3.0]
[1736141117217,3.2507,3686.7,3686.6,0.03948893]
[1736141117541,3.2507,3686.7,3685.5,2.442]
[1736141117542,0.8095,3686.7,3685.6,0.55]
[1736141117738,0.8095,3686.7,3685.7,0.04007254]
[1736141117914,0.8095,3686.7,3685.6,2.44191]
[1736141118121,0.8095,3686.7,3685.7,0.599191]
[1736141118322,0.8095,3686.7,3685.7,3.08111354]
[1736141118516,0.8095,3686.7,3685.7,0.63926354]
[1736141118854,1.13796379,3688.2,3685.9,3.13156675]
[1736141118855,0.8027,3687.5,3685.9,3.13156675]
[1736141119071,0.8027,3687.5,3686.2,2.58156675]
[1736141119276,0.8027,3687.5,3686.3,0.55]
[1736141119424,0.8027,3687.5,3686.5,2.58156675]
[1736141119749,0.8027,3687.5,3686.6,2.44124]
[1736141120077,0.8027,3687.5,3686.6,2.48072893]
[1736141120214,0.7982,3687.8,3686.6,2.48072893]
[1736141120413,1.1540249,3687.8,3686.7,2.99119]
[1736141120651,0.7982,3687.8,3686.7,2.99119]
[1736141120851,0.7982,3687.8,3686.7,2.44119]
[1736141121055,0.7982,3687.8,3686.6,0.35189268]
[1736141121257,2.90120575,3688.1,3686.6,0.35189268]
[1736141121258,0.7859,3687.6,3686.6,0.35189268]
[1736141121854,0.7859,3687.6,3686.6,2.79315268]
[1736141122043,0.7859,3687.6,3686.6,0.35189268]
[1736141122728,1.108544,3687.6,3686.6,0.35189268]
[1736141122926,0.7757,3687.5,3686.6,0.35189268]
[1736141123433,0.7757,3687.5,3686.6,2.79313268]
[1736141124241,0.7757,3687.5,3686.7,2.44115]
[1736141125275,2.44041,3687.9,3686.7,2.44115]
[1736141125467,0.7764,3688.1,3687.0,2.44094]
[1736141125648,0.7764,3688.1,3686.9,3.0]
[1736141125854,0.7764,3688.1,3687.0,0.55]
[1736141126056,0.7764,3688.1,3687.2,2.44087]
[1736141126253,0.7764,3688.1,3687.2,5.02243675]
[1736141126552,0.7764,3688.1,3687.3,0.31988674]
[1736141126752,0.7764,3688.1,3687.2,5.02243675]
[1736141126951,0.7764,3688.1,3687.2,2.58156675]
[1736141129144,0.7764,3688.1,3686.8,0.53746094]
[1736141129145,0.7969,3688.7,3687.5,2.58156675]
[1736141129338,0.7969,3688.7,3688.0,2.44034]
[1736141129651,0.7969,3688.7,3688.3,2.58156675]
[1736141129978,0.7969,3688.7,3688.0,5.02188675]
[1736141131085,0.7969,3688.7,3688.0,2.58156675]
[1736141131552,1.120558,3688.7,3687.8,2.44047]
[1736141131758,1.120558,3688.7,3687.7,2.58156675]
[1736141133255,0.7665,3688.6,3687.7,2.58156675]
[1736141133573,3.20646,3688.6,3687.7,2.58156675]
[1736141133879,0.7665,3688.3,3687.4,2.58156675]
[1736141134082,0.320658,3688.2,3687.4,2.58156675]
[1736141134775,0.7665,3688.3,3687.7,2.58156675]
[1736141134955,0.00271,3689.4,3688.0,2.58156675]
[1736141134956,3.2557,3689.3,3688.0,2.58156675]
[1736141135153,0.8162,3689.1,3688.3,2.58156675]
[1736141135557,0.8162,3689.1,3688.0,2.58156675]
[1736141135790,0.8162,3689.1,3688.0,5.52406842]
[1736141135953,0.8162,3689.1,3688.1,2.44024]
[1736141138510,0.8162,3689.1,3688.4,2.44008]
[1736141139204,0.00271,3689.4,3689.1,2.4396]
[1736141139367,0.00271,3689.4,3689.2,5.02109675]
[1736141139572,0.00271,3689.4,3689.3,2.94158968]
[1736141140471,0.00271,3689.4,3689.3,3.49158968]
[1736141143709,0.00271,3689.4,3689.3,6.49158968]
[1736141144204,0.00271,3689.4,3689.3,3.49158968]
[1736141144796,0.00271,3689.4,3689.3,0.50210968]
[1736141145003,0.21945985,3689.6,3689.3,0.50210968]
[1736141145319,0.21945985,3689.6,3689.2,2.58156675]
[1736141145320,0.21945985,3689.6,3689.5,0.55]
[1736141145473,0.21945985,3689.6,3689.5,2.98935]
[1736141145804,0.21945985,3689.6,3689.4,0.55232764]
[1736141146503,0.21945985,3689.6,3689.2,2.58156675]
[1736141147213,0.21945985,3689.6,3689.2,5.02109675]
[1736141148506,0.21945985,3689.6,3689.3,2.98947]
[1736141148712,0.21945985,3689.6,3689.0,0.55]
[1736141149023,0.21945985,3689.6,3688.8,3.0]
[1736141149990,0.7911,3689.5,3688.9,0.55]
[1736141150197,0.7911,3689.5,3689.0,0.355]
[1736141151188,0.7911,3689.5,3688.9,0.55]
[1736141151388,0.7911,3689.5,3688.4,5.02159675]
[1736141151720,0.7911,3689.5,3688.5,3.0]
[1736141152020,0.7911,3689.5,3688.4,5.02159675]
[1736141152221,0.7911,3689.5,3688.5,3.0]
[1736141152419,0.34498499,3689.4,3688.4,5.02159675]
[1736141152724,0.34498499,3689.4,3688.4,2.44003]
[1736141153343,0.7911,3689.5,3688.4,3.0]
[1736141153504,3.23047,3689.5,3688.4,3.0]
[1736141153687,0.8124,3689.2,3688.1,3.0]
[1736141154023,0.21945985,3689.6,3687.9,8.87]
[1736141154024,2.43968,3689.0,3687.9,8.87]
[1736141154242,0.8124,3688.9,3687.9,8.87]
[1736141154428,0.8124,3688.7,3687.8,0.2504]
[1736141154605,3.25237,3688.6,3687.8,0.2504]
[1736141155300,0.8124,3688.6,3687.8,0.2504]
[1736141155509,0.8124,3688.6,3687.9,2.44038]
[1736141155713,0.8124,3688.6,3688.0,2.44032]
[1736141155912,0.8124,3688.6,3688.0,3.02254867]
[1736141156244,0.8124,3688.6,3688.1,35.0]
[1736141160657,2.8010266,3689.6,3688.2,3.55]
[1736141160658,0.7672,3689.5,3688.2,3.55]
[1736141161054,0.7672,3689.5,3688.2,0.55]
[1736141161258,3.20655,3689.5,3688.3,2.44014]
[1736141161558,0.34260098,3689.4,3688.4,35.0]
[1736141162371,0.7672,3689.5,3688.5,0.55]
[1736141162527,0.7672,3689.5,3688.5,2.98998]
[1736141162943,0.7672,3689.5,3688.6,35.0]
[1736141165965,0.7672,3689.5,3688.7,0.55]
[1736141166162,0.7672,3689.5,3688.7,2.98987]
[1736141166368,0.7672,3689.5,3688.8,0.298987]
[1736141166667,0.7672,3689.5,3688.9,35.0]
[1736141169970,0.7672,3689.5,3689.1,2.43957]
[1736141170284,0.21945985,3689.6,3689.1,2.43957]
[1736141170783,0.21945985,3689.6,3689.2,35.0]
[1736141170939,0.21945985,3689.6,3689.3,0.91025336]
[1736141171480,0.8201,3689.5,3688.8,3.0]
[1736141172037,0.8201,3689.5,3688.7,11.30986]
[1736141172234,0.8201,3689.5,3688.7,8.87]
[1736141172438,2.43955,3689.2,3688.5,1.11651653]
[1736141172638,0.8201,3689.0,3688.5,1.11651653]
[1736141173427,0.8201,3689.0,3688.2,5.02175675]
[1736141173775,0.8201,3689.0,3688.3,35.0]
[1736141174292,0.8201,3689.0,3688.3,37.44012]
[1736141175311,0.8201,3689.0,3688.3,35.0]
[1736141182016,0.81683769,3689.0,3688.3,37.58156675]
[1736141182199,0.81683769,3689.0,3688.3,40.02169675]
[1736141183008,0.81683769,3689.0,3688.7,2.58156675]
[1736141183397,0.81683769,3689.0,3688.6,2.43988]
[1736141183605,0.81683769,3689.0,3688.6,0.55]
[1736141184010,0.81683769,3689.0,3688.7,0.85716467]
[1736141184332,0.81683769,3689.0,3688.5,3.0]
[1736141186525,0.81683769,3689.0,3688.3,35.0]
[1736141186835,2.58156675,3688.9,3688.1,1.11651653]
[1736141187120,3.26711,3688.2,3688.1,0.28321653]
[1736141188153,3.26711,3688.2,3687.8,0.2504]
[1736141188154,2.44021,3688.2,3687.8,0.2504]
[1736141188354,3.26731,3687.9,3687.8,0.2504]
[1736141189750,2.44063,3687.6,3686.3,2.44142]
[1736141189941,0.8269,3687.5,3686.3,2.44142]
[1736141190136,0.8269,3687.5,3686.5,2.44132]
[1736141190348,0.8269,3687.5,3686.3,0.55]
[1736141190530,0.8269,3687.5,3686.9,2.44107]
[1736141191241,0.8269,3687.5,3687.0,35.0]
[1736141192053,0.8269,3688.3,3687.1,3.13156675]
[1736141192217,0.8269,3688.3,3687.2,0.31315668]
[1736141192418,0.8269,3688.3,3687.6,35.0]
[1736141195362,0.8269,3688.3,3687.2,2.44081]
[1736141195759,0.8269,3688.3,3687.3,35.0]
[1736141196231,0.8154,3688.2,3687.0,3.0]
[1736141196574,2.58156675,3688.3,3687.0,3.0]
[1736141196575,0.8154,3687.9,3687.0,3.0]
[1736141196774,0.8154,3687.9,3687.0,38.0]
[1736141201471,0.8154,3687.9,3686.8,2.44113]
[1736141202977,0.8154,3687.9,3687.0,3.0]
[1736141204081,0.8154,3687.9,3687.4,2.44073]
[1736141204283,0.8154,3687.9,3687.4,2.739803]